Workbook

Sheet targets
D1: Target run time calculator for flow rate | J1: v 6-26-11 University of California Cooperative Extension mcmathews@ucdavis.edu
E3: 2011-06-01 | F3: date | I3: source lagoon: | J3: main lagoon
B4: My Dairy Farm | D4: 2011 | E4: summer | F4: season | I4: thousand gallons needed: | J4: =SUM(D35:M35) -> 0 | N4: extra location
B6: Location
B7: Acres
B8: Irrigation number
B10: Expected total run time (hrs)
B11: Expected GPM
B13: Target lbs/A available N
B14: Total N applied (lbs/A) | D14: =IF(AND(D13>0,D25>0),D13/(D25/D20),0) -> 0 | E14: =IF(AND(E13>0,E25>0),E13/(E25/E20),0) -> 0 | F14: 0 | G14: 0 | H14: 0 | I14: 0 | J14: 0 | K14: 0 | L14: 0 | M14: =IF(AND(M13>0,M25>0),M13/(M25/M20),0) -> 0 | N14: =IF(AND(N13>0,N25>0),N13/(N25/N20),0) -> 0
B16: Avail N lbs/A @ 100% run | D16: =IF(AND(D25>0,D7>0),(((D11*D10*60)/1000)*D25*0.008345)/D7,0) -> 0 | E16: =IF(AND(E25>0,E7>0),(((E11*E10*60)/1000)*E25*0.008345)/E7,0) -> 0 | F16: 0 | G16: 0 | H16: 0 | I16: 0 | J16: 0 | K16: 0 | L16: 0 | M16: =IF(AND(M25>0,M7>0),(((M11*M10*60)/1000)*M25*0.008345)/M7,0) -> 0 | N16: =IF(AND(N25>0,N7>0),(((N11*N10*60)/1000)*N25*0.008345)/N7,0) -> 0
B17: Total N lbs/A @ 100% run | D17: =IF(AND(D25>0,D7>0),((D11*D10*60)/1000*D20*0.008345)/D7,0) -> 0 | E17: =IF(AND(E25>0,E7>0),((E11*E10*60)/1000*E20*0.008345)/E7,0) -> 0 | F17: 0 | G17: 0 | H17: 0 | I17: 0 | J17: 0 | K17: 0 | L17: 0 | M17: =IF(AND(M25>0,M7>0),((M11*M10*60)/1000*M20*0.008345)/M7,0) -> 0 | N17: =IF(AND(N25>0,N7>0),((N11*N10*60)/1000*N20*0.008345)/N7,0) -> 0
B19: Sample name
B20: TKN-N (mg/L)
B21: Ammonium-N (mg/L)
B22: % organic-N | D22: =IF(D20>0,(D20-D21)/D20,0) -> 0 | E22: =IF(E20>0,(E20-E21)/E20,0) -> 0 | F22: 0 | G22: 0 | H22: 0 | I22: 0 | J22: 0 | K22: 0 | L22: 0 | M22: =IF(M20>0,(M20-M21)/M20,0) -> 0 | N22: =IF(N20>0,(N20-N21)/N20,0) -> 0
B23: % org-N available
B25: Available N (mg/L) | D25: =IF(D23>0,D21+((D20-D21)*D23),D21) -> 0 | E25: =IF(E23>0,E21+((E20-E21)*E23),E21) -> 0 | F25: 0 | G25: 0 | H25: 0 | I25: 0 | J25: 0 | K25: 0 | L25: 0 | M25: 0 | N25: 0
B28: Lagoon only run time | D28: =IF(D61>0,HoursMinutes(D61),"") ->  | E28: =IF(E61>0,HoursMinutes(E61),"") ->  | F28: =IF(F61>0,HoursMinutes(F61),"") ->  | G28: =IF(G61>0,HoursMinutes(G61),"") ->  | H28: =IF(H61>0,HoursMinutes(H61),"") ->  | I28: =IF(I61>0,HoursMinutes(I61),"") ->  | J28: =IF(J61>0,HoursMinutes(J61),"") ->  | K28: =IF(K61>0,HoursMinutes(K61),"") ->  | L28: =IF(L61>0,HoursMinutes(L61),"") ->  | M28: =IF(M61>0,HoursMinutes(M61),"") ->  | N28: =IF(N61>0,HoursMinutes(N61),"") -> 
B29: LW % of total run time | D29: =IF(D10>0,D61/D10,0) -> 0 | E29: 0 | F29: 0 | G29: 0 | H29: 0 | I29: 0 | J29: 0 | K29: 0 | L29: 0 | M29: 0 | N29: 0
B31: Needed GPM at desired run time | D31: =IF(AND(D25>0,D10>0),((D13*D7)/(D25*0.008345)*1000)/(D10*60),0) -> 0 | E31: 0 | F31: 0 | G31: 0 | H31: 0 | I31: 0 | J31: 0 | K31: 0 | L31: 0 | M31: 0 | N31: 0
B32: Needed run time at actual GPM | D32: =IF(AND(D25>0,D11>0),((D13*D7)/(D25*0.008345/1000)/D11)/60,0) -> 0 | E32: 0 | F32: 0 | G32: 0 | H32: 0 | I32: 0 | J32: 0 | K32: 0 | L32: 0 | M32: 0 | N32: 0
B34: Velocity (ft/sec) | D34: =IF(D63>0,D11/(D63*448.83),0) -> 0 | E34: 0 | F34: 0 | G34: 0 | H34: 0 | I34: 0 | J34: 0 | K34: 0 | L34: 0 | M34: 0 | N34: 0
B35: thousand gallons at desired rate | D35: =IF(AND(D14>0,D7>0,D20>0),(D14/(D20*0.008345))*D7,0) -> 0 | E35: 0 | F35: 0 | G35: 0 | H35: 0 | I35: 0 | J35: 0 | K35: 0 | L35: 0 | M35: 0 | N35: 0
B36: acre-inches pre acre | D36: =IF(D7>0,(D35/27.1542856)/D7,0) -> 0 | E36: 0 | F36: 0 | G36: 0 | H36: 0 | I36: 0 | J36: 0 | K36: 0 | L36: 0 | M36: 0 | N36: 0
B38: Application Rate Quick Calculator
B40: actual GPM
B41: actual hours
B42: applied available N/acre | D42: =IF(AND(D25>0,D7>0),((D40*D41*60)/1000*D25*0.008345)/D7,0) -> 0 | E42: 0 | F42: 0 | G42: 0 | H42: 0 | I42: 0 | J42: 0 | K42: 0 | L42: 0 | M42: 0 | N42: 0
B43: applied total N/acre | D43: =IF(AND(D25>0,D7>0),((D40*D41*60)/1000*D20*0.008345)/D7,0) -> 0 | E43: 0 | F43: 0 | G43: 0 | H43: 0 | I43: 0 | J43: 0 | K43: 0 | L43: 0 | M43: 0 | N43: 0
B46: Pump and Pipeline Parameters
B47: Pipe inside diameter (in.) | D47: 12 | E47: 12 | F47: 12 | G47: 12 | H47: 12 | I47: 12 | J47: 12 | K47: 12 | L47: 12 | M47: 12 | N47: 12
B48: minimum velocity (f/s) | D48: 2.3 | E48: 2.3 | F48: 2.3 | G48: 2.3 | H48: 2.3 | I48: 2.3 | J48: 2.3 | K48: 2.3 | L48: 2.3 | M48: 2.3 | N48: 2.3
B61: lagoon run time | D61: =IF(D$32<D$10,D$32,D$10) -> 0 | E61: =IF(E$32<E$10,E$32,E$10) -> 0 | F61: 0 | G61: 0 | H61: 0 | I61: 0 | J61: 0 | K61: 0 | L61: 0 | M61: 0 | N61: 0
B62: min/acre | C62: summer | D62: =IF(D7>0,(D10*60)/D7,0) -> 0 | E62: =IF(E7>0,(E10*60)/E7,0) -> 0 | F62: 0 | G62: 0 | H62: 0 | I62: 0 | J62: 0 | K62: 0 | L62: 0 | M62: 0 | N62: 0
B63: pipe ID sq ft | C63: fall | D63: =(((D47/2)*(D47/2))*3.14)/144 -> 0.785 | E63: 0.785 | F63: 0.785 | G63: 0.785 | H63: 0.785 | I63: 0.785 | J63: 0.785 | K63: 0.785 | L63: 0.785 | M63: 0.785 | N63: 0.785

Sheet Default LW sample sets
F1: Default Lagoon Samples
B2: *don’t delete*
B3: LW.default.Set1 | D3: sample set name | F3: LW default set 1
B4: LW.default.Set2 | F4: 2010 qrtly
B5: LW.default.Set3 | F5: LW default set 3
B6: LW.default.Set4
B7: LW.default.Set5
F9: Sample description | K9: % organic N | M9: Concentration
H10: LWDset.start | I10: LWDset.end | J10: LWDset.OptSmplName | L10: LWDset.PctONavail | M10: LWDset.TKN | N10: LWDset.ammon | O10: LWDset.NO3 | P10: LWDset.P | Q10: LWDset.K | R10: LWDset.EC
C11: set | F11: season or type | H11: use from start date | I11: use to end date | J11: sample notes | K11: % total N in organic form | L11: % of organic N available this crop | M11: Total Kjeldahl Nitrogen (mg/l or ppm) | N11: Ammonium nitrogen (mg/L) | O11: nitrate-N (mg/L) | P11: Phosphorus/P (mg/L) | Q11: Potassium/K (mg/L) | R11: Electrical Conductivity (umhos/cm)
B12: =C12&" "&F12 -> LW default set 1 fall | C12: =F$3 -> LW default set 1 | D12: =F3 -> LW default set 1 | F12: fall | H12: 2010-10-01 | I12: 2010-11-30 | J12: 4th quarter 2009 | K12: =(M12-N12)/M12 -> 0.4 | L12: 0.6 | M12: 750 | N12: 450
B13: =C13&" "&F13 -> LW default set 1 winter | C13: LW default set 1 | F13: winter | H13: =I12+1 -> 2010-12-01 | I13: 2011-02-28 | K13: =(M13-N13)/M13 -> 0.4066666667 | L13: 0.3 | M13: 900 | N13: 534
B14: =C14&" "&F14 -> LW default set 1 early spring | C14: LW default set 1 | F14: early spring | H14: =I13+1 -> 2011-03-01 | I14: 2011-04-15 | K14: =(M14-N14)/M14 -> 0.2916666667 | L14: 0.25 | M14: 600 | N14: 425
B15: LW default set 1 late spring | C15: LW default set 1 | F15: late spring | H15: =I14+1 -> 2011-04-16 | I15: 2011-06-01 | K15: 0.5 | L15: 0.7 | M15: 500 | N15: 250
B16: LW default set 1 early summer | C16: LW default set 1 | F16: early summer | H16: =I15+1 -> 2011-06-02 | I16: 2011-07-20 | K16: 0.375 | L16: 0.6 | M16: 400 | N16: 250
B17: LW default set 1 late summer | C17: LW default set 1 | F17: late summer | H17: =I16+1 -> 2011-07-21 | I17: 2011-09-30 | K17: 0.2142857143 | L17: 0.4 | M17: 350 | N17: 275
B18: LW default set 1 thin | C18: LW default set 1 | F18: thin | K18: 0.2142857143 | L18: 0.5 | M18: 350 | N18: 275
B19: LW default set 1 med | C19: LW default set 1 | F19: med | G19: x | K19: 0.3333333333 | L19: 0.5 | M19: 450 | N19: 300
B20: LW default set 1 thick | C20: LW default set 1 | F20: thick | K20: 0.5 | L20: 0.5 | M20: 700 | N20: 350
B21: LW default set 1 v thick | C21: LW default set 1 | F21: v thick | K21: 0.6875 | L21: 0.5 | M21: 1600 | N21: 500
B23: 2010 qrtly 1st quarter | C23: =F$4 -> 2010 qrtly | D23: =F4 -> 2010 qrtly | F23: 1st quarter
B24: 2010 qrtly 2nd quarter | C24: 2010 qrtly | F24: 2nd quarter
B25: 2010 qrtly 3rd quarter | C25: 2010 qrtly | F25: 3rd quarter
B26: 2010 qrtly 4th quarter | C26: 2010 qrtly | F26: 4th quarter
B27: 2010 qrtly | C27: 2010 qrtly
B28: 2010 qrtly | C28: 2010 qrtly
B29: 2010 qrtly | C29: 2010 qrtly
B30: 2010 qrtly | C30: 2010 qrtly
B31: 2010 qrtly | C31: 2010 qrtly
B32: 2010 qrtly | C32: 2010 qrtly
B34: LW default set 3 fall | C34: =F$5 -> LW default set 3 | D34: =F5 -> LW default set 3 | F34: fall | H34: 2011-10-01 | I34: 2010-11-30
B35: LW default set 3 winter | C35: LW default set 3 | F35: winter | H35: =I34+1 -> 2010-12-01 | I35: 2011-02-28
B36: LW default set 3 early spring | C36: LW default set 3 | F36: early spring | H36: =I35+1 -> 2011-03-01 | I36: 2011-04-15
B37: LW default set 3 late spring | C37: LW default set 3 | F37: late spring | H37: =I36+1 -> 2011-04-16 | I37: 2011-06-01
B38: LW default set 3 early summer | C38: LW default set 3 | F38: early summer | H38: =I37+1 -> 2011-06-02 | I38: 2011-07-20
B39: LW default set 3 late summer | C39: LW default set 3 | F39: late summer | H39: =I38+1 -> 2011-07-21 | I39: 2011-09-30
B40: LW default set 3 thin | C40: LW default set 3 | F40: thin
B41: LW default set 3 med | C41: LW default set 3 | F41: med
B42: LW default set 3 thick | C42: LW default set 3 | F42: thick
B43: LW default set 3 v thick | C43: LW default set 3 | F43: v thick
B45: 0 | C45: =F$6 -> 0 | D45: =F6 -> 0 | H45: 2011-10-01 | I45: 2010-11-30
B46: 0 | C46: 0 | H46: =I45+1 -> 2010-12-01 | I46: 2011-02-28
B47: 0 | C47: 0 | H47: =I46+1 -> 2011-03-01 | I47: 2011-04-15
B48: 0 | C48: 0 | H48: =I47+1 -> 2011-04-16 | I48: 2011-06-01
B49: 0 | C49: 0 | H49: =I48+1 -> 2011-06-02 | I49: 2011-07-20
B50: 0 | C50: 0 | H50: =I49+1 -> 2011-07-21 | I50: 2011-09-30
B51: 0 | C51: 0
B52: 0 | C52: 0
B53: 0 | C53: 0
B54: 0 | C54: 0
B56: 0 | C56: =F$7 -> 0 | D56: =F7 -> 0 | H56: 2011-10-01 | I56: 2010-11-30
B57: 0 | C57: 0 | H57: =I56+1 -> 2010-12-01 | I57: 2011-02-28
B58: 0 | C58: 0 | H58: =I57+1 -> 2011-03-01 | I58: 2011-04-15
B59: 0 | C59: 0 | H59: =I58+1 -> 2011-04-16 | I59: 2011-06-01
B60: 0 | C60: 0 | H60: =I59+1 -> 2011-06-02 | I60: 2011-07-20
B61: 0 | C61: 0 | H61: =I60+1 -> 2011-07-21 | I61: 2011-09-30
B62: 0 | C62: 0
B63: 0 | C63: 0
B64: 0 | C64: 0
B65: 0 | C65: 0

Sheet field sheet (hidden)
A1: Target run time field sheet for flow rate | C1: My Dairy Farm | D1: 2011 | H1: v 5-10-11 University of California Cooperative Extension mcmathews@ucdavis.edu
A2: 2011-06-01 | B2: summer | C2: main lagoon | E2: =SUM(B36:K36) -> 1550.770098 | F2: Kgals needed
A4: Location | B4: Field 1 | C4: Field 2 | D4: Field 3 | E4: Field 4 | F4: Field 5
A5: acres | B5: 20 | C5: 20 | D5: 20 | E5: 30 | F5: 20
A6: irrig num | B6: 1 | C6: 1 | D6: 1 | E6: 1 | F6: 1
A8: expected total run time (hrs) | B8: 9 | C8: 8 | D8: 8 | E8: 13 | F8: 8
A9: expected GPM | B9: 1000 | C9: 950 | D9: 900 | E9: 850 | F9: 800
A11: target lbs/ac available N | B11: 40 | C11: 40 | D11: 40 | E11: 40 | F11: 40
A12: lbs/ac total N applied | B12: =IF(AND(B11>0,B23>0),B11/(B23/B18),0) -> 47.05882353 | C12: =IF(AND(C11>0,C23>0),C11/(C23/C18),0) -> 47.05882353 | D12: 47.05882353 | E12: 47.05882353 | F12: 47.05882353 | G12: 0 | H12: 0 | I12: 0 | J12: 0 | K12: 0 | L12: 0
A14: avail N lbs/A @ 100% run | B14: =IF(AND(B23>0,B5>0),(((B9*B8*60)/1000)*B23*0.008345)/B5,0) -> 76.6071 | C14: =IF(AND(C23>0,C5>0),(((C9*C8*60)/1000)*C23*0.008345)/C5,0) -> 64.69044 | D14: 61.28568 | E14: 62.70433 | F14: 54.47616 | G14: 0 | H14: 0 | I14: 0 | J14: 0 | K14: 0 | L14: 0
A15: total N lbs/A @ 100% run | B15: =IF(AND(B23>0,B5>0),((B9*B8*60)/1000*B18*0.008345)/B5,0) -> 90.126 | C15: =IF(AND(C23>0,C5>0),((C9*C8*60)/1000*C18*0.008345)/C5,0) -> 76.1064 | D15: 72.1008 | E15: 73.7698 | F15: 64.0896 | G15: 0 | H15: 0 | I15: 0 | J15: 0 | K15: 0 | L15: 0
A17: sample name | B17: LW default set 1 early summer | C17: LW default set 1 early summer | D17: LW default set 1 early summer | E17: LW default set 1 early summer | F17: LW default set 1 early summer
A18: TKN-N (mg/L) | B18: 400 | C18: 400 | D18: 400 | E18: 400 | F18: 400
A19: ammonium-N (mg/L) | B19: 250 | C19: 250 | D19: 250 | E19: 250 | F19: 250
A20: % organic-N | B20: =IF(B18>0,(B18-B19)/B18,0) -> 0.375 | C20: =IF(C18>0,(C18-C19)/C18,0) -> 0.375 | D20: 0.375 | E20: 0.375 | F20: 0.375 | G20: 0 | H20: 0 | I20: 0 | J20: 0 | K20: 0 | L20: 0
A21: % org-N available | B21: 0.6 | C21: 0.6 | D21: 0.6 | E21: 0.6 | F21: 0.6
A23: mg/L available N | B23: =IF(B21>0,B19+((B18-B19)*B21),B19) -> 340 | C23: =IF(C21>0,C19+((C18-C19)*C21),C19) -> 340 | D23: 340 | E23: 340 | F23: 340 | G23: 0 | H23: 0 | I23: 0 | J23: 0 | K23: 0 | L23: 0
A25: lagoon run time | B25: =IF(B54,"",CONCATENATE(INT(B43)," hrs ",ROUND((B43-INT(B43))*60,0)," mins")) -> 4 hrs 42 mins | C25: =IF(C54,"",CONCATENATE(INT(C43)," hrs ",ROUND((C43-INT(C43))*60,0)," mins")) -> 4 hrs 57 mins | D25: =IF(D54,"",CONCATENATE(INT(D43)," hrs ",ROUND((D43-INT(D43))*60,0)," mins")) -> 5 hrs 13 mins | E25: 8 hrs 18 mins | F25: 5 hrs 52 mins
A26: LW % of total run time | B26: =IF(B8>0,B43/B8,0) -> 0.5221448143 | C26: 0.6183293853 | D26: 0.6526810178 | E26: 0.637914479 | F26: 0.734266145 | G26: 0 | H26: 0 | I26: 0 | J26: 0 | K26: 0 | L26: 0
A27: Application Rate Quick Calculator
A29: actual GPM | B29: 0 | C29: 0 | D29: 0 | E29: 0 | F29: 0 | G29: 0 | H29: 0 | I29: 0 | J29: 0 | K29: 0 | L29: 0
A30: actual hours | B30: 0 | C30: 0 | D30: 0 | E30: 0 | F30: 0 | G30: 0 | H30: 0 | I30: 0 | J30: 0 | K30: 0 | L30: 0
A31: applied available N/acre | B31: =IF(AND(B23>0,B5>0),((B29*B30*60)/1000*B23*0.008345)/B5,0) -> 0 | C31: =IF(AND(C23>0,C5>0),((C29*C30*60)/1000*C23*0.008345)/C5,0) -> 0 | D31: 0 | E31: 0 | F31: 0 | G31: 0 | H31: 0 | I31: 0 | J31: 0 | K31: 0 | L31: 0
A32: applied total N/acre | B32: =IF(AND(B23>0,B5>0),((B29*B30*60)/1000*B18*0.008345)/B5,0) -> 0 | C32: =IF(AND(C23>0,C5>0),((C29*C30*60)/1000*C18*0.008345)/C5,0) -> 0 | D32: 0 | E32: 0 | F32: 0 | G32: 0 | H32: 0 | I32: 0 | J32: 0 | K32: 0 | L32: 0
A35: Velocity (ft/sec) | B35: =IF(B53>0,B9/(B53*448.83),0) -> 2.838235747 | C35: =IF(C53>0,C9/(C53*448.83),0) -> 2.69632396 | D35: 2.554412172 | E35: 2.412500385 | F35: 2.270588598 | G35: 0 | H35: 0 | I35: 0 | J35: 0 | K35: 0 | L35: 0
A36: thousand gallons at desired rate | B36: =IF(AND(B12>0,B5>0,B18>0),(B12/(B18*0.008345))*B5,0) -> 281.9581997 | C36: =IF(AND(C12>0,C5>0,C18>0),(C12/(C18*0.008345))*C5,0) -> 281.9581997 | D36: 281.9581997 | E36: 422.9372995 | F36: 281.9581997 | G36: 0 | H36: 0 | I36: 0 | J36: 0 | K36: 0 | L36: 0
A37: acre-inches pre acre | B37: =IF(B5>0,(B36/27.1542856)/B5,0) -> 0.5191780845 | C37: =IF(C5>0,(C36/27.1542856)/C5,0) -> 0.5191780845 | D37: 0.5191780845 | E37: 0.5191780845 | F37: 0.5191780845 | G37: 0 | H37: 0 | I37: 0 | J37: 0 | K37: 0 | L37: 0
A39: Pump and Pipeline Parameters
A40: Pipe inside diameter (in.) | B40: 12 | C40: 12 | D40: 12 | E40: 12 | F40: 12 | G40: 12 | H40: 12 | I40: 12 | J40: 12 | K40: 12 | L40: 12
A41: minimum velocity (f/s) | B41: 2.3 | C41: 2.3 | D41: 2.3 | E41: 2.3 | F41: 2.3 | G41: 2.3 | H41: 2.3 | I41: 2.3 | J41: 2.3 | K41: 2.3 | L41: 2.3
A43: calculateded lagoon run time | B43: =IF(B$45<B$8,B$45,B$8) -> 4.699303328 | C43: 4.946635082 | D43: 5.221448143 | E43: 8.292888226 | F43: 5.87412916 | G43: 0 | H43: 0 | I43: 0 | J43: 0 | K43: 0 | L43: 0
A44: Needed GPM at desired run time | B44: =IF(AND(B23>0,B8>0),((B11*B5)/(B23*0.008345)*1000)/(B8*60),0) -> 522.1448143 | C44: =IF(AND(C23>0,C8>0),((C11*C5)/(C23*0.008345)*1000)/(C8*60),0) -> 587.412916 | D44: 587.412916 | E44: 542.2273071 | F44: 587.412916 | G44: 0 | H44: 0 | I44: 0 | J44: 0 | K44: 0 | L44: 0
A45: Needed run time at actual GPM | B45: =IF(AND(B23>0,B9>0),((B11*B5)/(B23*0.008345/1000)/B9)/60,0) -> 4.699303328 | C45: =IF(AND(C23>0,C9>0),((C11*C5)/(C23*0.008345/1000)/C9)/60,0) -> 4.946635082 | D45: 5.221448143 | E45: 8.292888226 | F45: 5.87412916 | G45: 0 | H45: 0 | I45: 0 | J45: 0 | K45: 0 | L45: 0
A52: minutes/acre | B52: =IF(B5>0,(B8*60)/B5,0) -> 27 | C52: 24 | D52: 24 | E52: 26 | F52: 24 | G52: 0 | H52: 0 | I52: 0 | J52: 0 | K52: 0 | L52: 0
A53: pipe ID sq ft | B53: =(((B40/2)*(B40/2))*3.14)/144 -> 0.785 | C53: 0.785 | D53: 0.785 | E53: 0.785 | F53: 0.785 | G53: 0.785 | H53: 0.785 | I53: 0.785 | J53: 0.785 | K53: 0.785 | L53: 0.785
A54: empty location | B54: =IF(B43>0,FALSE,TRUE) -> FALSE | C54: FALSE | D54: FALSE | E54: FALSE | F54: FALSE | G54: TRUE | H54: TRUE | I54: TRUE | J54: TRUE | K54: TRUE | L54: TRUE

Sheet datasheet
B2: Irrigation Data Sheet
B4: =targets!B4 -> My Dairy Farm | K4: date
B5: =targets!E3 -> 2011-06-01 | K5: weather
B7: source: | K7: concentrations | L7: total N | M7: NH4-N | N7: Org-N | O7: % avail | P7: Avail N
B8: =targets!J3 -> main lagoon | K8: expected (mg/L) | L8: =targets!D20 -> 0 | M8: =targets!D21 -> 0 | N8: =mrs.total_N-M8 -> 0 | O8: =targets!D23 -> 0 | P8: =targets!D25 -> 0
Q9: standing water
B11: Location | C11: acres | D11: Irrigation number | E11: Target avail N lbs/A | F11: Expect- ed gpm | K11: Location Start Date/Time | L11: Location End Date/Time | M11: Starting Pond Level | N11: Ending Pond Level | O11: Estimated gpm | P11: Fresh Water Source(s) | Q11: day before | R11: day after | S11: irrigator initials & notes
B12: =targets!D$6 -> 0 | C12: =targets!D$7 -> 0 | D12: =targets!D$8 -> 0 | E12: =targets!D$13 -> 0 | F12: =cell.targets.expectedGPM1 -> 0 | G12: =HoursMinutes(targets!D$10) ->  | I12: =HoursMinutes(targets!D$61) -> 
I13: =targets!D$29 -> 0
B14: =targets!E$6 -> 0 | C14: =targets!E$7 -> 0 | D14: =targets!E$8 -> 0 | E14: =targets!E$13 -> 0 | F14: =targets!E$11 -> 0 | G14: =HoursMinutes(targets!E$10) ->  | I14: =HoursMinutes(targets!E$61) -> 
I15: =targets!E$29 -> 0
B16: =targets!F$6 -> 0 | C16: =targets!F$7 -> 0 | D16: =targets!F$8 -> 0 | E16: =targets!F$13 -> 0 | F16: =targets!F$11 -> 0 | G16: =HoursMinutes(targets!F$10) ->  | I16: =HoursMinutes(targets!F$61) -> 
I17: =targets!F$29 -> 0
B18: =targets!G$6 -> 0 | C18: =targets!G$7 -> 0 | D18: =targets!G$8 -> 0 | E18: =targets!G$13 -> 0 | F18: =targets!G$11 -> 0 | G18: =HoursMinutes(targets!G$10) ->  | I18: =HoursMinutes(targets!G$61) -> 
I19: =targets!G$29 -> 0
B20: =targets!H$6 -> 0 | C20: =targets!H$7 -> 0 | D20: =targets!H$8 -> 0 | E20: =targets!H$13 -> 0 | F20: =targets!H$11 -> 0 | G20: =HoursMinutes(targets!H$10) ->  | I20: =HoursMinutes(targets!H$61) -> 
I21: =targets!H$29 -> 0
B22: =targets!I$6 -> 0 | C22: =targets!I$7 -> 0 | D22: =targets!I$8 -> 0 | E22: =targets!I$13 -> 0 | F22: =targets!I$11 -> 0 | G22: =HoursMinutes(targets!I$10) ->  | I22: =HoursMinutes(targets!I$61) -> 
I23: =targets!I$29 -> 0
B24: =targets!J$6 -> 0 | C24: =targets!J$7 -> 0 | D24: =targets!J$8 -> 0 | E24: =targets!J$13 -> 0 | F24: =targets!J$11 -> 0 | G24: =HoursMinutes(targets!J$10) ->  | I24: =HoursMinutes(targets!J$61) -> 
I25: =targets!J$29 -> 0
B26: =targets!K$6 -> 0 | C26: =targets!K$7 -> 0 | D26: =targets!K$8 -> 0 | E26: =targets!K$13 -> 0 | F26: =targets!K$11 -> 0 | G26: =HoursMinutes(targets!K$10) ->  | I26: =HoursMinutes(targets!K$61) -> 
I27: =targets!K$29 -> 0
B28: =targets!L$6 -> 0 | C28: =targets!L$7 -> 0 | D28: =targets!L$8 -> 0 | E28: =targets!L$13 -> 0 | F28: =targets!L$11 -> 0 | G28: =HoursMinutes(targets!L$10) ->  | I28: =HoursMinutes(targets!L$61) -> 
I29: =targets!L$29 -> 0
B30: =targets!M$6 -> 0 | C30: =targets!M$7 -> 0 | D30: =targets!M$8 -> 0 | E30: =targets!M$13 -> 0 | F30: =targets!M$11 -> 0 | G30: =HoursMinutes(targets!M$10) ->  | I30: =HoursMinutes(targets!M$61) -> 
I31: =targets!M$29 -> 0
